bitfinex/quotes_BTCUSD_20220731
["timestamp","ask_amount","ask_price","bid_price","bid_amount"]
[1659296354281,0.1,23911.0,23901.0,0.05]
[1659296354505,0.001,23913.0,23903.0,0.04188]
[1659296354734,0.05,23908.0,23904.0,0.40725733]
[1659296354967,0.05,23908.0,23905.0,0.56833457]
[1659296354968,7.09e-05,23908.0,23905.0,0.56833457]
[1659296355207,7.09e-05,23908.0,23906.0,0.40725733]
[1659296355431,7.09e-05,23908.0,23907.0,0.291942]
[1659296355656,0.001,23913.0,23907.0,0.65731933]
[1659296355888,0.47502916,23912.0,23908.0,0.40725733]
[1659296356793,8.158e-05,23910.0,23908.0,0.44913733]
[1659296357052,0.67966507,23909.0,23908.0,0.44913733]
[1659296357962,0.67966507,23909.0,23908.0,0.52813733]
[1659296359330,0.66966507,23909.0,23908.0,0.71425974]
[1659296359549,0.66966507,23909.0,23908.0,0.46421174]
[1659296360013,0.66966507,23909.0,23908.0,0.54321174]
[1659296360724,0.69001658,23909.0,23908.0,0.52813733]
[1659296360957,0.67041782,23909.0,23908.0,0.52813733]
[1659296361174,0.67041782,23909.0,23908.0,0.44913733]
[1659296362058,0.67041782,23909.0,23908.0,0.52813733]
[1659296363018,0.63041782,23909.0,23908.0,0.52813733]
[1659296363233,0.63041782,23909.0,23908.0,0.74934761]
[1659296363467,0.63041782,23909.0,23908.0,0.99939461]
[1659296363699,0.003,23912.0,23911.0,0.09188]
[1659296363933,0.003,23912.0,23911.0,0.54913733]
[1659296364161,0.003,23912.0,23911.0,1.390593]
[1659296364440,0.003,23912.0,23911.0,1.40323648]
[1659296364712,0.553,23925.0,23917.0,0.05]
[1659296364964,0.553,23925.0,23911.0,3.50523648]
[1659296364965,0.714,23930.0,23924.0,0.1]
[1659296365206,0.714,23930.0,23920.0,1.81975733]
[1659296365207,0.002,23931.0,23929.0,0.1]
[1659296365435,0.001,23933.0,23931.0,0.09188]
[1659296365699,0.55428011,23944.0,23932.0,0.052]
[1659296365700,0.00488011,23944.0,23932.0,0.052]
[1659296365927,0.00488011,23944.0,23933.0,0.71195309]
[1659296365928,0.40725733,23943.0,23933.0,0.71195309]
[1659296366164,0.00488011,23944.0,23934.0,0.95696433]
[1659296366400,0.00488011,23944.0,23935.0,0.85383309]
[1659296366645,0.00488011,23944.0,23941.0,0.05]
[1659296366908,0.00488011,23944.0,23936.0,0.95694133]
[1659296366909,0.00488011,23944.0,23943.0,0.6]
[1659296367150,0.00488011,23944.0,23943.0,1.25685833]
[1659296367385,0.48988011,23950.0,23944.0,0.55]
[1659296367620,0.05,23949.0,23945.0,0.40725733]
[1659296367854,0.48988011,23953.0,23945.0,0.40725733]
[1659296368102,0.05,23956.0,23948.0,0.05]
[1659296368103,0.300845,23952.0,23948.0,0.05]
[1659296368317,0.32044376,23951.0,23948.0,0.40725733]
[1659296368580,0.30091885,23950.0,23948.0,0.40725733]
[1659296368806,7.385e-05,23950.0,23948.0,0.40725733]
[1659296369270,7.385e-05,23950.0,23949.0,0.789403]
[1659296369486,0.001,23954.0,23949.0,1.15678033]
[1659296369717,0.1,23953.0,23950.0,0.40725733]
[1659296369937,0.1,23953.0,23949.0,0.078]
[1659296370162,0.1,23953.0,23949.0,0.48525733]
[1659296370379,0.40077685,23953.0,23949.0,0.48525733]
[1659296370846,0.01959876,23952.0,23949.0,0.48525733]
[1659296371319,0.01959876,23952.0,23949.0,0.40725733]
[1659296371545,0.01959876,23952.0,23945.0,0.40725733]
[1659296371787,0.48988011,23951.0,23945.0,0.40725733]
[1659296372063,0.1,23946.0,23941.0,0.40725733]
[1659296372297,0.48988011,23947.0,23941.0,0.40725733]
[1659296372521,0.05,23945.0,23941.0,0.40725733]
[1659296372747,0.350703,23945.0,23941.0,0.40725733]
[1659296372978,0.350703,23945.0,23942.0,0.01507441]
[1659296373217,0.05,23945.0,23942.0,0.40725733]
[1659296373666,0.1125,23948.0,23942.0,0.40725733]
[1659296373667,0.05,23948.0,23942.0,0.40725733]
[1659296373877,0.044,23945.0,23942.0,0.40725733]
[1659296374115,0.044,23945.0,23943.0,0.01507441]
[1659296374350,0.044,23945.0,23943.0,0.42233174]
[1659296374626,0.044,23945.0,23944.0,0.45725733]
[1659296374859,0.044,23945.0,23944.0,0.65678333]
[1659296375075,0.094,23945.0,23939.0,0.01011988]
[1659296375293,0.05,23945.0,23940.0,0.40725733]
[1659296375985,0.129,23945.0,23940.0,0.41737721]
[1659296376289,0.179,23945.0,23941.0,0.40725733]
[1659296376514,0.179,23945.0,23940.0,0.40725733]
[1659296376515,0.01959876,23944.0,23940.0,0.40725733]
[1659296376730,0.32030176,23944.0,23937.0,0.40725733]
[1659296376957,0.06959876,23944.0,23938.0,0.01011988]
[1659296377212,0.06959876,23944.0,23939.0,0.40725733]
[1659296377447,0.05,23943.0,23942.0,0.01011988]
[1659296377672,0.050759,23945.0,23942.0,0.02519429]
[1659296377901,0.079,23944.0,23942.0,0.43245162]
[1659296378131,0.079,23944.0,23943.0,0.46070721]
[1659296378373,0.079,23944.0,23943.0,0.76024621]
[1659296379335,0.65120351,23945.0,23943.0,0.76024621]
[1659296379584,0.65120351,23945.0,23944.0,0.40725733]
[1659296380061,0.81161351,23945.0,23944.0,0.40725733]
[1659296380283,0.81161351,23945.0,23941.0,0.01011988]
[1659296380284,1.15488751,23945.0,23941.0,0.01011988]
[1659296380507,0.01959876,23944.0,23942.0,0.40725733]
[1659296380972,0.32030176,23944.0,23941.0,0.40725733]
[1659296381207,0.42030176,23944.0,23940.0,0.40725733]
[1659296381421,0.300703,23943.0,23940.0,0.40725733]
[1659296381876,0.350703,23943.0,23940.0,0.40725733]
[1659296382107,0.350703,23943.0,23936.0,0.41737721]
[1659296382108,0.600703,23942.0,23936.0,0.41737721]
[1659296382442,0.600703,23942.0,23930.0,0.62217484]
[1659296382443,0.500703,23941.0,23937.0,0.40725733]
[1659296382553,0.500703,23941.0,23936.0,0.40725733]
[1659296382801,0.000171,23937.0,23934.0,0.01011988]
[1659296383035,0.000171,23937.0,23934.0,0.49085733]
[1659296383488,0.000171,23937.0,23935.0,0.01011988]
[1659296383718,0.000171,23937.0,23934.0,0.49085733]
[1659296383953,0.300703,23936.0,23934.0,0.49085733]
[1659296384192,0.06959876,23936.0,23934.0,0.49085733]
[1659296384418,0.06959876,23936.0,23934.0,0.0836]
[1659296384644,0.05,23935.0,23930.0,0.01011988]
[1659296384874,0.1,23931.0,23928.0,0.01011988]
[1659296385117,0.1,23929.0,23928.0,0.01011988]
[1659296385341,0.01959876,23930.0,23928.0,0.41737721]
[1659296385565,0.43865733,23935.0,23928.0,0.41737721]
[1659296385566,0.05,23933.0,23928.0,0.41737721]
[1659296385799,0.350703,23932.0,23928.0,0.41737721]
[1659296386036,0.350703,23932.0,23926.0,0.01011988]
[1659296386037,0.05,23928.0,23926.0,0.01011988]
[1659296386334,0.05,23928.0,23922.0,0.04288]
[1659296386335,0.950703,23927.0,23922.0,0.04288]
[1659296386566,0.65,23927.0,23923.0,0.41737721]
[1659296386795,0.7,23927.0,23923.0,0.41737721]
[1659296387031,0.7,23927.0,23922.0,0.001]
[1659296387032,0.15,23927.0,23926.0,0.05344988]
[1659296387257,0.05,23929.0,23926.0,0.30320788]
[1659296387511,7.238e-05,23936.0,23928.0,0.01011988]
[1659296387783,0.48865733,23935.0,23928.0,0.41737721]
[1659296388029,0.429,23929.0,23928.0,0.41737721]
[1659296388257,0.479,23929.0,23928.0,0.41737721]
[1659296388474,0.129,23929.0,23928.0,0.41737721]
[1659296389176,0.05,23929.0,23928.0,0.41737721]
[1659296389420,0.01959876,23930.0,23928.0,0.41737721]
[1659296389650,0.350703,23931.0,23927.0,0.01011988]
[1659296389873,0.079,23929.0,23927.0,0.01011988]
[1659296390146,0.15,23928.0,23927.0,0.00011988]
[1659296390596,0.450703,23928.0,23922.0,0.001]
[1659296390815,0.15,23928.0,23923.0,0.40725733]
[1659296391488,0.15,23928.0,23922.0,0.40825733]
[1659296391981,0.229,23928.0,23922.0,0.40825733]
[1659296392209,0.49438224,23925.0,23922.0,0.40825733]
[1659296392434,0.54438224,23925.0,23922.0,0.40825733]
[1659296393367,0.54438224,23925.0,23922.0,0.001]
[1659296393368,0.05,23924.0,23922.0,0.001]
[1659296393612,0.95,23923.0,23922.0,0.001]
[1659296393844,1.300703,23923.0,23922.0,0.001]
[1659296394077,0.450703,23923.0,23922.0,0.001]
[1659296395269,0.500703,23923.0,23922.0,0.001]
[1659296395968,0.64930176,23923.0,23922.0,0.001]
[1659296396186,0.59930176,23923.0,23922.0,0.001]
[1659296396645,0.579703,23923.0,23922.0,0.001]
[1659296397113,0.59930176,23923.0,23922.0,0.001]
[1659296397337,0.52030176,23923.0,23922.0,0.001]
[1659296397858,0.57030176,23923.0,23922.0,0.001]
[1659296398089,1.01270176,23923.0,23922.0,0.001]
[1659296398300,0.71270176,23923.0,23922.0,0.001]
[1659296398744,0.59930176,23923.0,23922.0,0.001]
[1659296399195,0.52030176,23923.0,23922.0,0.001]
[1659296399691,0.47030176,23923.0,23922.0,0.001]
[1659296399919,0.528703,23923.0,23922.0,0.001]
[1659296400632,0.478703,23923.0,23922.0,0.001]
[1659296401312,0.42030176,23923.0,23922.0,0.001]
[1659296402057,0.49930176,23923.0,23922.0,0.001]
[1659296402295,0.49930176,23923.0,23922.0,0.40825733]
[1659296402296,0.429703,23923.0,23922.0,0.40825733]
[1659296402529,0.129,23923.0,23922.0,0.40825733]
[1659296402766,0.429703,23923.0,23922.0,0.40825733]
[1659296403008,0.129,23923.0,23922.0,0.40825733]
[1659296403257,0.05,23923.0,23922.0,0.42348805]
[1659296403488,7.321e-05,23926.0,23922.0,0.40825733]
[1659296403706,0.32030176,23925.0,23923.0,0.40725733]
[1659296403931,0.05029281,23929.0,23923.0,0.40725733]
[1659296403932,0.300703,23924.0,23923.0,0.40725733]
[1659296404165,0.05,23924.0,23923.0,0.42248805]
[1659296404386,0.1134,23930.0,23923.0,0.42248805]
[1659296404615,0.350703,23929.0,23924.0,0.40725733]
[1659296404857,7.286e-05,23927.0,23924.0,0.40725733]
[1659296405091,0.01967162,23927.0,23924.0,0.40725733]
[1659296405569,0.01959876,23927.0,23924.0,0.40725733]
[1659296406015,0.05,23926.0,23924.0,0.40725733]
[1659296406242,0.14867162,23927.0,23924.0,0.40725733]
[1659296406939,0.14867162,23927.0,23924.0,0.61725733]
[1659296407209,0.91622883,23934.0,23924.0,0.63233174]
[1659296407210,0.300703,23928.0,23924.0,0.63233174]
[1659296407459,0.5542,23934.0,23925.0,0.65702433]
[1659296407695,0.5542,23934.0,23926.0,0.80725733]
[1659296407696,6.216e-05,23927.0,23926.0,0.80725733]
[1659296408350,6.216e-05,23927.0,23926.0,1.07208574]
[1659296408356,0.079,23928.0,23926.0,1.07208574]
[1659296408575,0.129,23928.0,23927.0,0.75725733]
[1659296408802,0.079,23928.0,23927.0,0.45725733]
[1659296409029,0.079,23928.0,23927.0,0.46008647]
[1659296409265,7.115e-05,23933.0,23927.0,0.46008647]
[1659296409531,7.115e-05,23933.0,23928.0,0.40725733]
[1659296409768,0.300703,23932.0,23928.0,0.40725733]
[1659296409995,0.01959876,23931.0,23929.0,0.01507441]
[1659296410215,0.300703,23932.0,23928.0,0.40725733]
[1659296410658,0.350703,23932.0,23927.0,0.05]
[1659296410910,0.400703,23932.0,23925.0,0.40725733]
[1659296411616,0.05,23932.0,23925.0,0.40725733]
[1659296411849,0.0634,23934.0,23925.0,0.40725733]
[1659296412076,0.079,23932.0,23925.0,0.40725733]
[1659296412297,7.308e-05,23930.0,23925.0,0.40725733]
[1659296413179,0.300703,23929.0,23925.0,0.40725733]
[1659296413480,0.1,23932.0,23926.0,0.01507441]
[1659296413700,0.300703,23931.0,23926.0,0.42233174]
[1659296413920,0.079,23929.0,23926.0,0.40725733]
[1659296414139,0.01959876,23928.0,23926.0,0.40725733]
[1659296414365,0.079,23929.0,23927.0,0.01507441]
[1659296414581,0.05,23928.0,23926.0,0.40725733]
[1659296414843,0.079,23929.0,23926.0,0.40725733]
[1659296415076,0.300703,23928.0,23926.0,0.40725733]
[1659296415331,0.05,23928.0,23926.0,0.40725733]
[1659296415564,0.56298058,23927.0,23926.0,0.42233174]
[1659296415777,0.56298058,23927.0,23926.0,0.40725733]
[1659296415778,0.61298058,23927.0,23926.0,0.40725733]
[1659296416481,0.61298058,23927.0,23924.0,0.61725733]
[1659296416725,1.05,23925.0,23924.0,0.21]
[1659296416969,0.450703,23925.0,23924.0,0.20991721]
[1659296417182,0.47030176,23925.0,23924.0,0.20991721]
[1659296417914,0.494703,23925.0,23924.0,0.20991721]
[1659296418365,0.544703,23925.0,23924.0,0.20991721]
[1659296418606,0.594703,23925.0,23924.0,0.20991721]
[1659296419083,0.544703,23925.0,23924.0,0.20991721]
[1659296419538,0.90796033,23925.0,23924.0,0.20991721]
[1659296419775,0.95796033,23925.0,23924.0,0.20991721]
[1659296419992,1.33696033,23925.0,23924.0,0.20991721]
[1659296421166,1.03696033,23925.0,23924.0,0.20991721]
[1659296421390,0.97755909,23925.0,23924.0,0.20991721]
[1659296421621,1.30896909,23925.0,23924.0,0.20991721]
[1659296421832,1.27755909,23925.0,23924.0,0.20991721]
[1659296422072,1.35655909,23925.0,23924.0,0.20991721]
[1659296422557,0.05,23922.0,23921.0,0.001]
[1659296422799,2.25796033,23922.0,23921.0,0.001]
[1659296423476,0.80796033,23922.0,23921.0,0.001]
[1659296423755,0.300703,23922.0,23921.0,0.001]
[1659296423977,0.379703,23922.0,23921.0,0.001]
[1659296424676,0.379703,23922.0,23921.0,0.04433]
[1659296424910,0.079,23922.0,23921.0,0.04433]
[1659296425141,0.079,23922.0,23921.0,0.001]
[1659296425142,0.379703,23922.0,23921.0,0.001]
[1659296425375,0.300703,23922.0,23921.0,0.001]
[1659296426066,0.379703,23922.0,23921.0,0.001]
[1659296426296,0.39930176,23922.0,23921.0,0.001]
[1659296426576,0.49930176,23922.0,23921.0,0.001]
[1659296426781,0.44930176,23922.0,23921.0,0.001]
[1659296427482,0.429703,23922.0,23921.0,0.00389647]
[1659296427925,0.508703,23922.0,23921.0,0.00389647]
[1659296428610,0.52830176,23922.0,23921.0,0.00389647]
[1659296429354,0.77755909,23922.0,23921.0,0.001]
[1659296429581,0.82755909,23922.0,23921.0,0.051]
[1659296429802,0.77755909,23922.0,23921.0,0.051]
[1659296430024,0.85755909,23922.0,23921.0,0.051]
[1659296430278,1.25755909,23922.0,23921.0,0.051]
[1659296430509,1.02085909,23922.0,23921.0,0.051]
[1659296430748,1.32085909,23922.0,23921.0,0.051]
[1659296430989,1.02085909,23922.0,23921.0,0.051]
[1659296431205,1.24085909,23922.0,23921.0,0.051]
[1659296431912,1.31985909,23922.0,23921.0,0.051]
[1659296433064,0.81260176,23922.0,23921.0,0.051]
[1659296433291,0.46260176,23922.0,23921.0,0.051]
[1659296433511,0.369703,23922.0,23921.0,0.051]
[1659296434467,0.469703,23922.0,23921.0,0.051]
[1659296435343,1.14796033,23922.0,23921.0,0.051]
[1659296436014,1.22696033,23922.0,23921.0,0.051]
[1659296436254,0.1,23920.0,23919.0,0.0011]
[1659296436528,0.85796033,23920.0,23919.0,0.0011]
[1659296436755,1.15796033,23920.0,23919.0,0.0011]
[1659296437209,0.87755909,23920.0,23919.0,0.0011]
[1659296437431,1.17755909,23920.0,23919.0,0.0011]
[1659296437922,1.25655909,23920.0,23919.0,0.0011]
[1659296438350,0.20908955,23918.0,23910.0,0.041882]
[1659296438590,0.300782,23917.0,23911.0,0.40725733]
[1659296438805,0.75803933,23917.0,23910.0,0.41770933]
[1659296439071,0.45725733,23917.0,23910.0,0.41770933]
[1659296439283,0.05,23917.0,23911.0,0.40725733]
[1659296439949,0.129,23917.0,23911.0,0.40725733]
[1659296440165,0.079,23917.0,23911.0,0.43868733]
[1659296440500,0.079,23917.0,23912.0,0.40725733]
[1659296440729,0.379782,23917.0,23912.0,0.40725733]
[1659296440964,0.079,23917.0,23912.0,0.41771033]
[1659296441194,0.300782,23917.0,23912.0,0.41771033]
[1659296441417,0.300782,23916.0,23912.0,0.41771033]
[1659296441636,0.32038076,23915.0,23912.0,0.41771033]
[1659296441895,0.25908955,23918.0,23912.0,0.43294113]
[1659296442109,0.479782,23917.0,23912.0,0.43294113]
[1659296442335,0.300782,23916.0,23912.0,0.43294113]
[1659296442562,0.1,23913.0,23911.0,0.03320824]
[1659296442805,0.1,23912.0,23911.0,0.03320824]
[1659296443034,0.400782,23912.0,23911.0,0.03320824]
[1659296443265,0.450782,23912.0,23911.0,0.00177824]
[1659296443719,0.47038076,23912.0,23911.0,0.00177824]
[1659296443953,0.529782,23912.0,23911.0,0.00177824]
[1659296444700,1.29938076,23912.0,23905.0,0.59159089]
[1659296444926,0.99859876,23912.0,23906.0,0.40725733]
[1659296445149,0.99859876,23912.0,23911.0,0.00058557]
[1659296445369,1.22038076,23912.0,23911.0,0.00058557]
[1659296445613,1.17038076,23912.0,23911.0,0.00058557]
[1659296445834,1.7138186,23912.0,23906.0,0.4028429]
[1659296446073,1.4920366,23912.0,23906.0,0.4028429]
[1659296446512,1.5420366,23912.0,23906.0,0.4132989]
[1659296446809,0.20912779,23911.0,23906.0,0.4028429]
[1659296447055,0.05,23910.0,23906.0,0.4028429]
[1659296447274,0.05,23910.0,23906.0,0.4132989]
[1659296447951,0.129,23910.0,23906.0,0.4132989]
[1659296448641,0.079,23910.0,23907.0,0.0179059]
[1659296449103,0.079,23910.0,23907.0,0.02954744]
[1659296449344,0.20912779,23911.0,23907.0,0.02954744]
[1659296450031,0.128,23910.0,23907.0,0.01164154]
[1659296450489,0.128,23910.0,23907.0,0.02954744]
[1659296450970,0.14759876,23910.0,23907.0,0.02954744]
[1659296451200,0.128,23910.0,23907.0,0.02954744]
[1659296451426,0.05,23910.0,23907.0,0.02954744]
[1659296451915,0.01959876,23909.0,23907.0,0.01164154]
[1659296452146,0.128,23910.0,23907.0,0.02671595]
[1659296452379,0.128,23910.0,23907.0,0.02685752]
[1659296452614,0.128,23910.0,23907.0,0.01164154]
[1659296453077,0.078,23910.0,23907.0,0.01164154]
[1659296453331,0.20912779,23911.0,23908.0,0.01521598]
[1659296453556,0.20912779,23911.0,23908.0,0.02567098]
[1659296453796,0.1,23909.0,23907.0,0.00118654]
[1659296454044,0.364182,23909.0,23908.0,0.0005912]
[1659296454267,0.364182,23909.0,23908.0,1.2e-06]
[1659296454268,0.87143933,23909.0,23908.0,1.2e-06]
[1659296454525,0.82143933,23909.0,23908.0,1.2e-06]
[1659296454990,0.82143933,23909.0,23908.0,0.00057883]
[1659296455955,0.90043933,23909.0,23908.0,0.00057883]
[1659296456639,0.95043933,23909.0,23908.0,0.00057883]
[1659296457364,0.87143933,23909.0,23908.0,0.00057883]
[1659296458045,0.95043933,23909.0,23908.0,0.00057883]
[1659296458491,1.15960277,23909.0,23908.0,0.00057883]
[1659296458722,1.04620277,23909.0,23908.0,0.00057883]
[1659296459388,0.96720277,23909.0,23908.0,0.00057883]
[1659296459798,0.91720277,23909.0,23908.0,0.00057883]
[1659296460014,0.99520277,23909.0,23908.0,0.00057883]
[1659296460932,1.05780277,23909.0,23908.0,0.00057883]
[1659296461397,1.10780277,23909.0,23908.0,0.00057883]
[1659296461615,1.15780277,23909.0,23908.0,0.00057883]
[1659296461833,1.02980277,23909.0,23908.0,0.00057883]
[1659296462048,1.10780277,23909.0,23908.0,0.00057883]
[1659296463170,1.02980277,23909.0,23908.0,0.00057883]
[1659296464096,1.10780277,23909.0,23908.0,0.00057883]
[1659296464536,1.04520277,23909.0,23908.0,0.00057883]
[1659296464782,0.99520277,23909.0,23908.0,0.00057883]
[1659296465021,0.078,23909.0,23908.0,0.05898324]
[1659296465249,0.54343784,23912.0,23908.0,0.00057883]
[1659296465471,0.300782,23911.0,23908.0,0.00057883]
[1659296465710,0.300782,23910.0,23908.0,0.00057883]
[1659296465920,0.54343784,23912.0,23908.0,0.00057883]
[1659296465921,0.300782,23909.0,23908.0,0.00057883]
[1659296466399,0.62243784,23912.0,23908.0,0.00057883]
[1659296466625,0.300782,23911.0,23908.0,0.00057883]
[1659296466851,0.300782,23910.0,23908.0,0.00057883]
[1659296467086,0.300782,23909.0,23908.0,0.00057883]
[1659296467361,0.350782,23909.0,23908.0,0.00057883]
[1659296467809,0.05,23909.0,23908.0,0.00057883]
[1659296468032,0.128,23909.0,23908.0,0.00057883]
[1659296468739,0.12792591,23909.0,23908.0,0.00057883]
[1659296469427,0.20911925,23911.0,23908.0,0.00057883]
[1659296469639,0.300782,23910.0,23908.0,0.00057883]
[1659296469888,0.20911925,23911.0,23908.0,0.01103383]
[1659296470101,0.042,23909.0,23908.0,0.01103383]
[1659296470989,0.042,23909.0,23908.0,0.46072756]
[1659296471287,0.042,23909.0,23908.0,1.02387156]
[1659296471508,0.20907407,23914.0,23908.0,1.02387156]
[1659296471743,0.20907407,23914.0,23909.0,0.51179433]
[1659296471978,0.20907407,23914.0,23910.0,0.41771033]
[1659296472198,0.20907407,23914.0,23911.0,0.01521596]
[1659296472666,0.20907407,23914.0,23910.0,0.41771033]
[1659296473120,0.20907407,23914.0,23911.0,0.01521596]
[1659296473339,0.25907407,23914.0,23911.0,0.01521596]
[1659296473559,0.25907407,23914.0,23911.0,0.02566996]
[1659296474009,0.29807407,23914.0,23911.0,0.02566996]
[1659296474681,0.29307407,23914.0,23911.0,0.02566996]
[1659296475374,0.25407407,23914.0,23911.0,0.02566996]
[1659296476055,0.30407407,23914.0,23911.0,0.02566996]
[1659296476951,0.30407407,23914.0,23912.0,0.00058138]
[1659296477191,0.25407407,23914.0,23912.0,0.00058138]
[1659296477886,1.009394,23920.0,23917.0,0.05]
[1659296478118,1.009394,23920.0,23919.0,1.20725733]
[1659296478393,1.009394,23920.0,23919.0,1.23867733]
[1659296478604,1.009394,23920.0,23919.0,1.79851033]
[1659296478838,0.99360506,23920.0,23919.0,0.74851033]
[1659296479593,0.99360506,23920.0,23919.0,0.69851033]
[1659296479827,0.99360506,23920.0,23919.0,0.259833]
[1659296480044,1.35758706,23920.0,23913.0,0.5813]
[1659296480294,1.35758706,23920.0,23914.0,0.40725733]
[1659296480295,1.05680506,23920.0,23914.0,0.40725733]
[1659296480527,0.99360506,23920.0,23915.0,0.259884]
[1659296480748,1.04360506,23920.0,23916.0,0.40725733]
[1659296480985,1.04360506,23920.0,23919.0,0.00057278]
[1659296481213,1.06320382,23920.0,23919.0,0.00057278]
[1659296481462,1.04360506,23920.0,23919.0,0.00057278]
[1659296481928,1.09560506,23920.0,23917.0,0.02330081]
[1659296482155,1.04560506,23920.0,23918.0,0.259845]
[1659296482393,1.04560506,23920.0,23917.0,0.40783026]
[1659296482927,0.300782,23919.0,23917.0,0.40783026]
[1659296483156,0.99360506,23920.0,23917.0,0.42290467]
[1659296483391,0.01959876,23919.0,23917.0,0.40783026]
[1659296483612,1.04360506,23920.0,23917.0,0.40783026]
[1659296484054,1.12260506,23920.0,23917.0,0.40783026]
[1659296485164,1.04360506,23920.0,23918.0,0.01507441]
[1659296485449,1.04360506,23920.0,23917.0,0.41888987]
[1659296485915,1.12260506,23920.0,23918.0,0.00730306]
[1659296486147,0.300782,23919.0,23917.0,0.41888987]
[1659296486369,0.05,23918.0,23917.0,0.41888987]
[1659296486601,0.52691046,23918.0,23917.0,0.41888987]
[1659296486854,0.05,23918.0,23917.0,0.46076987]
[1659296487077,1.12260506,23920.0,23917.0,0.72062787]
[1659296487305,1.12260506,23920.0,23917.0,0.42933987]
[1659296487306,0.512309,23918.0,23917.0,0.42933987]
[1659296487529,0.512309,23918.0,23917.0,0.68919787]
[1659296487757,0.562309,23918.0,23917.0,0.68919787]
[1659296487988,0.562309,23918.0,23917.0,0.43664323]
[1659296487989,0.641309,23918.0,23917.0,0.43664323]
[1659296488221,0.641309,23918.0,23917.0,0.68919887]
[1659296488663,0.641309,23918.0,23917.0,0.70427328]
[1659296488894,0.129,23918.0,23917.0,0.70427328]
[1659296489119,0.129,23918.0,23917.0,1.00427328]
[1659296489503,0.129,23918.0,23917.0,0.67874887]
[1659296489504,0.01959876,23918.0,23917.0,0.67874887]
[1659296489507,0.99360506,23920.0,23917.0,0.26104154]
[1659296489702,0.51703592,23919.0,23917.0,0.00118254]
[1659296489898,0.12,23918.0,23917.0,0.00118254]
[1659296490308,0.13959876,23918.0,23917.0,0.00178803]
[1659296490721,0.18959876,23918.0,23917.0,0.00178803]
[1659296491104,0.15,23918.0,23917.0,0.01878343]
[1659296491323,0.15,23918.0,23917.0,0.00240238]
[1659296491556,0.16959876,23918.0,23917.0,0.00240238]
[1659296491785,0.15,23918.0,23917.0,0.00240238]
[1659296492017,0.229,23918.0,23917.0,0.00240238]
[1659296492916,0.529782,23918.0,23917.0,0.00240238]
[1659296493134,0.229,23918.0,23917.0,0.00240238]
[1659296493383,0.15,23918.0,23917.0,0.00240238]
[1659296493807,0.529782,23918.0,23917.0,0.00240238]
[1659296494024,0.229,23918.0,23917.0,0.02368738]
[1659296494735,0.229,23918.0,23917.0,0.00240238]
[1659296495394,0.229,23918.0,23917.0,0.01747679]
[1659296495611,0.15,23918.0,23917.0,0.27733579]
[1659296495837,0.102,23918.0,23917.0,0.00240238]
[1659296496058,0.052,23918.0,23917.0,0.00240238]
[1659296496261,0.07159876,23918.0,23917.0,0.00240238]
[1659296496490,0.12159876,23918.0,23917.0,0.00240238]
[1659296497191,0.06959876,23918.0,23917.0,0.00319668]
[1659296497390,0.05,23918.0,23917.0,0.00319668]
[1659296497618,0.01959876,23918.0,23917.0,0.00319668]
[1659296497845,0.042,23918.0,23917.0,0.41045401]
[1659296498075,0.042,23918.0,23917.0,1.02031301]
[1659296498292,0.042,23918.0,23917.0,1.05173301]
[1659296498549,0.042,23918.0,23917.0,1.15622701]
[1659296498994,0.042,23918.0,23917.0,1.12480701]
[1659296499661,0.99360506,23920.0,23917.0,1.15622701]
[1659296499886,0.99360506,23920.0,23918.0,0.70725733]
[1659296500115,0.99360506,23920.0,23919.0,0.68347271]
[1659296500560,0.99360506,23920.0,23919.0,0.66709233]
[1659296500781,1.04360506,23920.0,23919.0,0.40725733]
[1659296501039,1.04360506,23920.0,23919.0,0.66709033]
[1659296501267,1.04360506,23920.0,23919.0,0.68961603]
[1659296501935,1.04360506,23920.0,23919.0,0.42978303]
[1659296502134,1.04360506,23920.0,23919.0,0.68961703]
[1659296504150,1.04360506,23920.0,23919.0,0.73961703]
[1659296504369,1.04360506,23920.0,23919.0,1.11291703]
[1659296504370,0.99360506,23920.0,23919.0,1.11291703]
[1659296504598,0.99360506,23920.0,23919.0,1.12547418]
[1659296504819,0.99360506,23920.0,23919.0,1.1128307]
[1659296505343,0.99360506,23920.0,23919.0,1.10768243]
[1659296506017,0.99360506,23920.0,23919.0,1.15068243]
[1659296506726,0.99360506,23920.0,23919.0,0.85068243]
[1659296506940,0.99360506,23920.0,23919.0,0.81926243]
[1659296507160,1.04360506,23920.0,23919.0,0.81926243]
[1659296507381,1.04360506,23920.0,23919.0,0.77626243]
[1659296508047,1.04360506,23920.0,23919.0,0.81926243]
[1659296508273,1.04360506,23920.0,23919.0,0.76926243]
[1659296509199,1.04360506,23920.0,23919.0,0.72626243]
[1659296509867,1.04360506,23920.0,23919.0,0.71881114]
[1659296510086,1.04360506,23920.0,23919.0,0.75173673]
[1659296510807,1.04360506,23920.0,23919.0,0.76681114]
[1659296511267,1.04360506,23920.0,23918.0,0.02264703]
[1659296511529,1.04360506,23920.0,23911.0,0.02317259]
[1659296511530,0.1,23917.0,23911.0,0.01272259]
[1659296511749,0.15,23917.0,23912.0,0.40725733]
[1659296511986,0.2132,23917.0,23912.0,0.40725733]
[1659296512233,0.2132,23917.0,23910.0,0.40725733]
[1659296512473,0.2132,23917.0,23911.0,0.40725733]
[1659296514022,0.2922,23917.0,23911.0,0.40725733]
[1659296514756,0.229,23917.0,23911.0,0.40725733]
[1659296515194,0.229,23917.0,23911.0,0.40977284]
[1659296515195,0.15,23917.0,23911.0,0.40977284]
[1659296515410,0.15,23917.0,23912.0,0.40725733]
[1659296516055,0.229,23917.0,23912.0,0.40725733]
[1659296516714,0.229,23917.0,23912.0,0.41770933]
[1659296516931,0.229,23917.0,23913.0,0.40725733]
[1659296516932,0.300783,23916.0,23913.0,0.40725733]
[1659296517152,0.22865448,23916.0,23913.0,0.42364201]
[1659296517368,0.22865448,23916.0,23914.0,0.40725733]
[1659296517582,0.20905572,23916.0,23914.0,0.40725733]
[1659296518100,0.28805572,23916.0,23914.0,0.40725733]
[1659296518310,0.30765448,23916.0,23914.0,0.40725733]
[1659296519176,0.30765448,23916.0,23913.0,0.010452]
[1659296519398,0.22865448,23916.0,23914.0,0.00251702]
[1659296519617,0.1,23915.0,23914.0,0.00251702]